[Event "ISR-ch Open 2018"]
[Site "Ma'alot-Tarshih"]
[Date "2018.12.18"]
[Round "7"]
[White "Lukin, Elisha"]
[Black "Frenkel, Ran"]
[Result "1/2-1/2"]
[ECO "A21"]
[WhiteElo "2280"]
[BlackElo "2252"]
[Annotator "NA"]
[PlyCount "130"]
[EventDate "2018.12.11"]
[EventType "swiss"]
[EventCountry "ISR"]
[SourceTitle "playchess.com"]
[Source "ChessBase"]
[SourceQuality "1"]
[TimeControl "40/5400+30:1800+30"]

1. d4 {[%emt 0:09:27]} d6 {[%emt 0:00:00]} 2. c4 {[%emt 0:00:09]} e5 {[%emt 0:00:00]} 3. Nc3 {[%emt 0:03:44]} exd4 {[%emt 0:00:00]} 4. Qxd4 {[%emt 0:01:48]} Nc6 {[%emt 0:00:20]} 5. Qd2 {[%emt 0:00:56]} Nf6 {[%emt 0:00:48]} 6. g3 {[%emt 0:00:15]} g6 {[%emt 0:00:47] A21: English Opening: 1...e5 2 Nc3} 7. Bg2 {[%emt 0:00:11]} Bg7 {[%emt 0:00:09]} 8. Nh3 {[%emt 0:00:43]} (8. b3 O-O 9. Bb2 a5 10. Nf3 Re8 11. O-O Bf5 12. Nh4 Bd7 13. Rad1 Qc8 14. Rfe1 Ne5 15. Nf3 Nxf3+ 16. Bxf3 Bc6 17. Nd5 Bxd5 18. cxd5 {1-0 (31) Dreev,A (2667)-Aronian,L (2815) Dubai 2014}) 8... Be6 {[%emt 0:11:24]} 9. b3 $146 {[%emt 0:05:54]} ({Predecessor:} 9. Nd5 Ne5 10. Qc2 c6 11. Ne3 Qa5+ 12. Bd2 Qa6 13. b3 O-O {1-0 (42) Jauernig,U-Schatz,C (2112) Wuerzburg 1995}) 9... O-O {[%emt 0:15:57]} 10. Nf4 {[%emt 0:01:31]} Bf5 {[%emt 0:04:11]} 11. Bb2 {[%emt 0:02:26]} Re8 {[%emt 0:01:55]} 12. O-O {[%emt 0:01:16]} Rb8 {[%emt 0:00:51]} 13. Rfe1 {[%emt 0:11:47]} Ne5 {[%emt 0:06:31]} 14. Rad1 {[%emt 0:01:34]} a6 {[%emt 0:54:07]} 15. Qc1 {[%emt 0:01:13]} c6 {[%emt 0:00:00]} 16. Qd2 {[%emt 0:10:27]} ({White should try} 16. Ba3 $16) 16... b5 {[%emt 0:00:00]} 17. cxb5 {[%emt 0:02:19]} axb5 {[%emt 0:00:00]} 18. Qxd6 {[%emt 0:02:42]} Qxd6 {[%emt 0:00:00]} 19. Rxd6 {[%emt 0:00:10]} g5 {[%emt 0:00:00]} 20. e4 {[%emt 0:19:30]} gxf4 {[%emt 0:00:00]} 21. gxf4 $19 {[%emt 0:02:37]} (21. exf5 $17 Nc4 22. Rxe8+ Nxe8 23. Rxc6 Nxb2 24. gxf4) 21... Ng6 {[%emt 0:00:00]} 22. Re3 {[%emt 0:03:54]} Nxe4 {[%emt 0:00:00]} 23. Nxe4 {[%emt 0:03:58]} Bxb2 {[%emt 0:00:00]} 24. Ng3 {[%emt 0:00:30]} Rxe3 {[%emt 0:01:07]} 25. fxe3 {[%emt 0:00:04]} Nh4 {[%emt 0:02:35]} 26. Bxc6 {[%emt 0:01:50]} Bg6 {[%emt 0:00:10]} 27. Rd5 {[%emt 0:01:11]} Rc8 {[%emt 0:00:58]} 28. Bxb5 {[%emt 0:00:54]} Rc1+ {[%emt 0:00:05]} 29. Kf2 {[%emt 0:00:31]} Rc2+ {[%emt 0:00:13]} 30. Be2 {[%emt 0:00:12]} f6 {[%emt 0:01:09]} 31. f5 {[%emt 0:01:49]} Bf7 {[%emt 0:00:14]} 32. Ra5 {[%emt 0:01:39]} Bc3 {[%emt 0:00:18]} 33. Ra4 {[%emt 0:00:32]} Be5 {[%emt 0:01:42]} 34. Rxh4 {[%emt 0:03:01]} Rxa2 {[%emt 0:00:02]} 35. b4 {[%emt 0:01:26]} Rb2 {[%emt 0:00:02]} 36. Ne4 {[%emt 0:01:29]} Kg7 {[%emt 0:00:19]} 37. Nc5 {[%emt 0:00:10]} Bd6 {[%emt 0:01:55]} 38. Ke1 {[%emt 0:03:06]} Rb1+ {[%emt 0:00:34]} 39. Kd2 {[%emt 0:00:05]} Rb2+ {[%emt 0:00:05]} 40. Kd1 {[%emt 0:00:25]} Rb1+ {[%emt 0:00:39]} 41. Kc2 {[%emt 0:30:50]} Rh1 {[%emt 0:30:05]} 42. e4 {[%emt 0:00:00]} Rxh2 {[%emt 0:00:00]} 43. Rxh2 {[%emt 0:00:00]} Bxh2 {[%emt 0:00:00]} 44. Ne6+ {[%emt 0:00:00]} Bxe6 {[%emt 0:00:00]} 45. fxe6 {[%emt 0:00:00]} Bd6 {[%emt 0:00:00]} 46. b5 {[%emt 0:00:00]} Kf8 {[%emt 0:00:00]} 47. Kd3 {[%emt 0:00:00]} Ke7 {[%emt 0:00:00]} 48. Bg4 {[%emt 0:00:00]} h5 {[%emt 0:00:00]} 49. Bh3 {[%emt 0:00:00]} Kd8 {[%emt 0:00:00]} 50. Ke3 {[%emt 0:00:00]} Kc7 {[%emt 0:00:00]} 51. Kf3 {[%emt 0:00:00]} Kb6 {[%emt 0:00:00]} 52. Bf1 {[%emt 0:00:00]} Kc5 {[%emt 0:00:00]} 53. Kg2 {[%emt 0:00:00]} Be7 {[%emt 0:00:00]} 54. Kh3 {[%emt 0:00:00]} Kd6 {[%emt 0:00:00]} 55. Bc4 {[%emt 0:00:00]} Kc5 {[%emt 0:00:00]} 56. Kg2 {[%emt 0:01:04]} Bd6 {[%emt 0:00:00]} 57. Be2 {[%emt 0:00:48]} Be7 {[%emt 0:00:00]} 58. Kg3 {[%emt 0:03:06]} Kd6 {[%emt 0:00:48]} 59. Bc4 {[%emt 0:00:37]} Kc5 {[%emt 0:02:05]} 60. Kf3 {[%emt 0:00:11]} Bd8 {[%emt 0:01:00]} 61. Bf1 {[%emt 0:04:46]} Kd6 {[%emt 0:00:08]} 62. Bh3 {[%emt 0:01:32]} Kc5 {[%emt 0:00:08]} 63. Bf5 {[%emt 0:00:32]} Kxb5 {[%emt 0:00:12]} 64. Kg3 {[%emt 0:00:01]} Kc5 {[%emt 0:00:15]} 65. Kh4 {[%emt 0:00:29]} Kd6 {[%emt 0:00:09]} 1/2-1/2

[Event "ISR-ch Open 2018"]
[Site "Ma'alot-Tarshih"]
[Date "2018.12.18"]
[Round "7"]
[White "Gleizer, Mark"]
[Black "Chernomordik, Pavel"]
[Result "0-1"]
[ECO "A42"]
[WhiteElo "2186"]
[BlackElo "2277"]
[Annotator "NA"]
[PlyCount "112"]
[EventDate "2018.12.11"]
[EventType "swiss"]
[EventCountry "ISR"]
[SourceTitle "playchess.com"]
[Source "ChessBase"]
[SourceQuality "1"]
[TimeControl "40/5400+30:1800+30"]

1. d4 {[%emt 0:00:00]} g6 {[%emt 0:01:43]} 2. c4 {[%emt 0:00:00]} Bg7 {[%emt 0:00:03]} 3. Nc3 {[%emt 0:00:00]} d6 {[%emt 0:00:09]} 4. e4 {[%emt 0:00:12]} c6 {[%emt 0:00:30]} 5. Be3 {[%emt 0:01:18]} a6 {[%emt 0:00:44]} 6. Rc1 {[%emt 0:00:33] A42: Modern Defence: Averbakh Variation} Nf6 {[%emt 0:00:57]} 7. f3 {[%emt 0:01:17]} Nfd7 $146 {[%emt 0:04:32]} ({Predecessor:} 7... b5 8. b3 Nbd7 9. Nh3 O-O 10. Nf2 Rb8 11. Be2 bxc4 12. bxc4 c5 13. d5 Qa5 14. Bd2 h5 {1-0 (32) Graf,A (2595)-Rothe,G (2235) Dresden 2007}) 8. Qd2 {[%emt 0:09:31]} e5 {[%emt 0:05:30]} 9. d5 {[%emt 0:04:07]} Nf6 {[%emt 0:05:35]} 10. Bd3 {[%emt 0:04:53]} Nh5 {[%emt 0:03:46]} 11. Nge2 {[%emt 0:01:22]} f5 {[%emt 0:03:52]} 12. c5 {[%emt 0:11:58]} f4 {[%emt 0:07:58]} 13. Bf2 {[%emt 0:00:18]} dxc5 {[%emt 0:00:09]} 14. Bxc5 {[%emt 0:01:11]} Nd7 {[%emt 0:08:35]} 15. Bf2 {[%emt 0:04:27]} c5 {[%emt 0:01:40]} 16. a4 {[%emt 0:03:17]} O-O {[%emt 0:10:24]} 17. Nb1 {[%emt 0:02:06]} b6 {[%emt 0:01:54]} 18. b4 {[%emt 0:00:51]} cxb4 {[%emt 0:01:39]} 19. Qxb4 {[%emt 0:00:13]} Qg5 {[%emt 0:00:25]} 20. Rg1 {[%emt 0:05:54]} Qd8 {[%emt 0:04:04]} 21. Nec3 {[%emt 0:03:44]} Bf6 {[%emt 0:04:27] [#]} 22. Nd2 $1 {[%emt 0:05:56]} Bh4 {[%emt 0:03:25]} 23. Nd1 {[%emt 0:05:01]} Nc5 {[%emt 0:06:00]} 24. Be2 {[%emt 0:01:55]} a5 $14 {[%emt 0:00:44]} 25. Qa3 {[%emt 0:01:29]} Bd7 {[%emt 0:01:41]} 26. Rxc5 {[%emt 0:08:16]} bxc5 {[%emt 0:02:47]} 27. g3 {[%emt 0:01:10]} fxg3 {[%emt 0:04:07]} 28. hxg3 {[%emt 0:00:40]} Be7 {[%emt 0:00:01]} 29. Nc4 {[%emt 0:00:13]} Qb8 {[%emt 0:01:17]} 30. Ndb2 {[%emt 0:09:32]} Ra7 {[%emt 0:04:44]} 31. Kd2 {[%emt 0:01:59]} Rb7 {[%emt 0:00:43]} 32. Kc2 {[%emt 0:01:15]} Nf6 {[%emt 0:01:33]} 33. Be1 {[%emt 0:00:30]} Rb4 {[%emt 0:01:52]} 34. Bc3 {[%emt 0:01:21]} Qe8 {[%emt 0:04:00]} 35. Ra1 {[%emt 0:01:17]} Nh5 {[%emt 0:00:26]} 36. Bxe5 {[%emt 0:01:03]} Bf6 {[%emt 0:00:45]} 37. Bd6 {[%emt 0:01:35]} Bd4 {[%emt 0:00:56]} 38. Ra2 {[%emt 0:04:58]} Rf6 {[%emt 0:01:02]} 39. Bc7 {[%emt 0:01:45]} Qc8 {[%emt 0:00:54]} 40. Bd6 {[%emt 0:01:32]} Qb7 {[%emt 0:02:30]} 41. g4 {[%emt 0:05:17]} Nf4 {[%emt 0:03:59]} 42. Bxf4 {[%emt 0:02:04]} Rxf4 {[%emt 0:02:17]} 43. Nxa5 {[%emt 0:03:10]} Qc7 {[%emt 0:03:52]} 44. Nac4 {[%emt 0:01:22]} Rf8 {[%emt 0:03:51]} 45. d6 {[%emt 0:03:50]} Qd8 {[%emt 0:01:08]} 46. a5 {[%emt 0:01:47]} Qh4 {[%emt 0:06:34]} 47. Qd3 {[%emt 0:03:57]} Be6 {[%emt 0:04:16]} 48. a6 {[%emt 0:03:42]} Bxb2 {[%emt 0:05:13]} 49. a7 {[%emt 0:01:02]} Ra8 {[%emt 0:02:13]} 50. Rxb2 {[%emt 0:00:51]} Rxc4+ {[%emt 0:01:05]} 51. Qxc4 {[%emt 0:00:19]} Bxc4 {[%emt 0:00:48]} 52. Rb8+ {[%emt 0:00:08]} Kg7 {[%emt 0:00:06]} 53. Rxa8 {[%emt 0:00:16]} Qf2 {[%emt 0:00:21]} 54. Rg8+ {[%emt 0:06:28]} Bxg8 {[%emt 0:00:33]} 55. a8=Q {[%emt 0:00:15]} Qxe2+ {[%emt 0:00:06]} 56. Kc1 {[%emt 0:02:13]} Qc4+ {[%emt 0:03:35]} 0-1

[Event "ISR-ch Open 2018"]
[Site "Ma'alot-Tarshih"]
[Date "2018.12.18"]
[Round "7"]
[White "Kupervaser, Erez"]
[Black "Emanuel, Yahav"]
[Result "1/2-1/2"]
[ECO "C45"]
[WhiteElo "2168"]
[BlackElo "2221"]
[Annotator "NA"]
[PlyCount "139"]
[EventDate "2018.12.11"]
[EventType "swiss"]
[EventCountry "ISR"]
[SourceTitle "playchess.com"]
[Source "ChessBase"]
[SourceQuality "1"]
[TimeControl "40/5400+30:1800+30"]

1. e4 {[%emt 0:00:00]} e5 {[%emt 0:00:00]} 2. Nf3 {[%emt 0:00:00]} Nc6 {[%emt 0:00:00]} 3. d4 {[%emt 1:31:30]} exd4 {[%emt 0:00:00]} 4. Nxd4 {[%emt 0:00:00]} Nf6 {[%emt 0:00:00]} 5. Nxc6 {[%emt 0:00:00]} bxc6 {[%emt 0:00:01]} 6. e5 {[%emt 0:00:00]} Qe7 {[%emt 0:00:08] LiveBook: 3348 Games} 7. Qe2 {[%emt 0:00:00]} Nd5 {[%emt 0:00:09]} 8. h4 {[%emt 0:00:00]} d6 {[%emt 0:06:55] C45: Scotch Game} (8... Qe6 9. g3 Nb4 10. c4 Ba6 11. Bf4 d5 12. a3 Bxc4 13. Qd1 Bxf1 14. Kxf1 Na6 15. Nc3 Nc5 16. b4 {1-0 (32) Tomczak,J (2614)-Kramnik,V (2779) Batumi 2018}) 9. c4 {[%emt 0:00:00]} Ba6 {[%emt 0:05:08]} 10. exd6 $146 {[%emt 0:00:00]} ({Predecessor:} 10. Rh3 dxe5 11. Qe4 f5 12. Qxf5 Bc8 13. Qe4 Bxh3 14. gxh3 Nb6 15. Qxc6+ Qd7 16. Bg2 {0-1 (26) Sindarov,J (2488)-Rakshitta,R (2198) Abu Dhabi 2018}) 10... cxd6 {[%emt 0:00:26]} 11. Qxe7+ {[%emt 0:00:00]} Nxe7 {[%emt 0:00:03]} 12. b3 {[%emt 0:00:00]} h5 {[%emt 0:05:42]} 13. Bb2 {[%emt 0:00:00]} Rh6 {[%emt 0:04:05]} 14. Be2 {[%emt 0:00:00]} Re6 {[%emt 0:02:06]} 15. Nc3 {[%emt 0:00:00]} d5 {[%emt 0:03:24]} 16. O-O-O {[%emt 0:00:00]} dxc4 {[%emt 0:13:36]} 17. Bxh5 {[%emt 0:00:00]} cxb3 {[%emt 0:03:31]} 18. axb3 {[%emt 0:00:00]} Rb8 {[%emt 0:04:03]} 19. Na4 {[%emt 0:00:00]} Be2 {[%emt 0:07:04]} 20. Bxe2 {[%emt 0:00:00]} Rxe2 {[%emt 0:00:02]} 21. Nc3 {[%emt 0:00:00]} Rxf2 {[%emt 0:06:13]} 22. Ne4 {[%emt 0:00:00]} Rxg2 {[%emt 0:03:29]} 23. Nd6+ {[%emt 0:00:00]} Kd7 {[%emt 0:00:19]} 24. Nxf7+ {[%emt 0:00:00]} Nd5 {[%emt 0:00:29]} 25. Rh3 {[%emt 0:00:00]} Bd6 {[%emt 0:07:23]} 26. Nxd6 {[%emt 0:00:00]} Kxd6 {[%emt 0:00:01]} 27. Rf3 {[%emt 0:00:00]} Kc5 {[%emt 0:04:40]} 28. Bd4+ {[%emt 0:00:00]} Kb4 {[%emt 0:00:29]} 29. Rd2 {[%emt 0:00:00]} Rxd2 {[%emt 0:03:08]} 30. Kxd2 {[%emt 0:00:00]} Rh8 {[%emt 0:01:02]} 31. Bf2 $15 {[%emt 0:00:00]} a5 {[%emt 0:02:27]} 32. Be1 {[%emt 0:00:00]} Re8 {[%emt 0:04:08]} 33. Kd1+ {[%emt 0:00:00]} Kb5 {[%emt 0:03:59]} 34. Bd2 {[%emt 0:04:09]} Re4 {[%emt 0:03:47]} 35. Rf7 {[%emt 0:00:22]} Rxh4 {[%emt 0:03:07]} 36. Rxg7 {[%emt 0:00:05]} Nb4 {[%emt 0:01:39]} 37. Bxb4 {[%emt 0:04:38]} Kxb4 {[%emt 0:02:45]} 38. Rb7+ {[%emt 0:00:56]} Kc3 {[%emt 0:00:53]} 39. Rb6 {[%emt 0:00:05]} Rh1+ {[%emt 0:01:06]} 40. Ke2 {[%emt 0:00:07]} Rh2+ {[%emt 0:01:26]} 41. Kd1 {[%emt 0:32:14]} Rh1+ {[%emt 0:08:37]} 42. Ke2 {[%emt 0:00:00]} Rh2+ {[%emt 0:00:26]} 43. Kd1 {[%emt 0:00:00]} c5 {[%emt 0:00:12]} 44. Rb5 {[%emt 0:00:00]} Rh1+ {[%emt 0:01:48]} 45. Ke2 {[%emt 0:00:00]} Rh2+ {[%emt 0:01:17]} 46. Kd1 {[%emt 0:00:00]} Rh1+ {[%emt 0:00:21]} 47. Ke2 {[%emt 0:00:00]} Rh5 {[%emt 0:00:12]} 48. Kd1 {[%emt 0:00:00]} Kb2 {[%emt 0:01:30]} 49. Kd2 {[%emt 0:00:00]} Rd5+ {[%emt 0:03:38]} 50. Ke3 {[%emt 0:00:00]} Kc2 {[%emt 0:05:57]} 51. Ke4 {[%emt 0:00:00]} Rg5 {[%emt 0:00:14]} 52. Kf4 {[%emt 0:00:00]} Rh5 {[%emt 0:00:03]} 53. Ke4 {[%emt 0:00:00]} Kc3 {[%emt 0:00:36]} 54. Ke3 {[%emt 0:00:00]} Rf5 {[%emt 0:02:37]} 55. Ke4 {[%emt 0:00:00]} Rh5 {[%emt 0:00:03]} 56. Ke3 {[%emt 0:00:00]} Re5+ {[%emt 0:03:03]} 57. Kf4 {[%emt 0:00:00]} Re1 {[%emt 0:01:03]} 58. Rxc5+ {[%emt 0:00:00]} Kb4 {[%emt 0:00:02]} 59. Rh5 {[%emt 0:00:00]} Ra1 {[%emt 0:01:33]} 60. Ke3 {[%emt 0:00:00]} Kxb3 {[%emt 0:01:44]} 61. Kd2 {[%emt 0:00:00]} a4 {[%emt 0:00:32]} 62. Rb5+ {[%emt 0:00:00]} Ka2 {[%emt 0:00:50]} 63. Kc2 {[%emt 0:00:00]} Rh1 {[%emt 0:00:27]} 64. Rb7 {[%emt 0:00:00]} a3 {[%emt 0:00:22]} 65. Rb8 {[%emt 0:00:00]} Ka1 {[%emt 0:00:29]} 66. Rb7 {[%emt 0:00:00]} Rh2+ {[%emt 0:00:15]} 67. Kc1 {[%emt 0:00:00]} Rb2 {[%emt 0:00:20]} 68. Ra7 {[%emt 0:00:00]} a2 {[%emt 0:01:28]} 69. Rc7 {[%emt 0:00:00]} Rc2+ {[%emt 0:00:42]} 70. Rxc2 {[%emt 0:00:00]} 1/2-1/2

[Event "ISR-ch Open 2018"]
[Site "Ma'alot-Tarshih"]
[Date "2018.12.19"]
[Round "8"]
[White "Galburd, Yan"]
[Black "Taichman, Ori"]
[Result "1-0"]
[ECO "B27"]
[WhiteElo "2382"]
[BlackElo "2303"]
[Annotator "NA"]
[PlyCount "55"]
[EventDate "2018.12.12"]
[EventType "swiss"]
[EventCountry "ISR"]
[SourceTitle "playchess.com"]
[Source "ChessBase"]
[SourceQuality "1"]
[TimeControl "40/5400+30:1800+30"]

1. d4 {[%emt 0:00:00]} g6 {[%emt 0:00:00]} 2. e4 {[%emt 0:01:05]} Bg7 {[%emt 0:00:00]} 3. Nf3 {[%emt 0:00:36]} c5 {[%emt 0:00:11]} 4. dxc5 {[%emt 0:01:43]} Qa5+ {[%emt 0:00:29]} 5. c3 {[%emt 0:01:05]} Qxc5 {[%emt 0:00:07]} 6. Be3 {[%emt 0:05:30] LiveBook: 144 Games} Qc6 {[%emt 0:02:32] B27: Sicilian: 2 Nf3, unusual Black 2nd moves} (6... Qa5 7. Nbd2 d6 8. Nc4 Qc7 9. Bd4 Nf6 10. e5 dxe5 11. Bxe5 Qd7 12. Qxd7+ Bxd7 13. Bg3 Nc6 14. Nce5 Nxe5 15. Bxe5 {1-0 (51) Motylev,A (2656)-Kulaots,K (2571) Tallinn 2016}) 7. Bd3 {[%emt 0:08:25]} b6 $146 {[%emt 0:17:50]} ({Predecessor:} 7... Nf6 8. Nd4 Qc7 9. Nb5 Qa5 10. b4 Qd8 11. Nxa7 Nc6 12. Nxc8 Qxc8 13. O-O O-O 14. a3 {1-0 (25) Bezgodova,S (2198)-Zakharchenko,A (2315) Voronezh 2009}) 8. Qe2 {[%emt 0:13:27]} Bb7 {[%emt 0:19:31]} 9. Nbd2 {[%emt 0:10:12]} Nf6 {[%emt 0:05:34]} 10. e5 {[%emt 0:01:58]} Nd5 {[%emt 0:00:16]} 11. Be4 {[%emt 0:02:14]} Qc8 {[%emt 0:06:35]} 12. O-O {[%emt 0:06:47]} f5 {[%emt 0:14:28]} 13. exf6 {[%emt 0:01:32]} Nxf6 {[%emt 0:00:20]} 14. Bxb7 {[%emt 0:02:58]} Qxb7 {[%emt 0:00:14]} 15. Bg5 {[%emt 0:05:45]} Nc6 {[%emt 0:02:47]} 16. Rad1 {[%emt 0:06:10]} O-O {[%emt 0:03:27]} 17. Rfe1 {[%emt 0:00:05]} Kh8 {[%emt 0:02:33]} 18. Ne4 {[%emt 0:00:54]} Qc7 {[%emt 0:11:05]} 19. Nxf6 $16 {[%emt 0:04:14]} Bxf6 {[%emt 0:00:02]} 20. Qc4 {[%emt 0:00:59]} Rad8 {[%emt 0:02:58]} 21. Rxe7 {[%emt 0:03:25]} Bxe7 {[%emt 0:06:05]} 22. Bxe7 {[%emt 0:00:03]} Rde8 {[%emt 0:03:07]} 23. Bxf8 {[%emt 0:01:08]} Rxf8 {[%emt 0:00:07]} 24. Qd5 {[%emt 0:01:40]} Re8 {[%emt 0:01:09]} 25. Qf7 {[%emt 0:00:55]} Qc8 {[%emt 0:00:32]} 26. Rxd7 {[%emt 0:05:07]} Qxd7 {[%emt 0:00:03]} 27. Qxd7 {[%emt 0:00:06]} Rd8 {[%emt 0:00:01]} 28. Qe6 {[%emt 0:00:44]} 1-0

[Event "ISR-ch Open 2018"]
[Site "Ma'alot-Tarshih"]
[Date "2018.12.19"]
[Round "8"]
[White "Libman, Guy"]
[Black "Kupervaser, Erez"]
[Result "1/2-1/2"]
[ECO "B39"]
[WhiteElo "2299"]
[BlackElo "2168"]
[Annotator "ChessBase"]
[PlyCount "50"]
[EventDate "2018.12.12"]
[EventType "swiss"]
[EventCountry "ISR"]
[SourceTitle "playchess.com"]
[Source "ChessBase"]
[SourceQuality "1"]
[TimeControl "40/5400+30:1800+30"]

1. e4 {[%emt 0:00:00]} c5 {[%emt 0:00:00]} 2. Nf3 {[%emt 0:00:00]} g6 {[%emt 0:00:00]} 3. d4 {[%emt 0:00:18]} cxd4 {[%emt 0:00:00]} 4. Nxd4 {[%emt 0:00:07]} Bg7 {[%emt 0:00:02]} 5. c4 {[%emt 0:00:32]} Nc6 {[%emt 0:00:06]} 6. Be3 {[%emt 0:00:30]} Nf6 {[%emt 0:00:18]} 7. Nc3 {[%emt 0:00:15]} Ng4 {[%emt 0:00:06]} 8. Qxg4 {[%emt 0:00:07]} Nxd4 {[%emt 0:00:01]} 9. Qd1 {[%emt 0:00:08]} e5 {[%emt 0:00:08]} 10. Bd3 {[%emt 0:01:40]} O-O {[%emt 0:00:26]} 11. O-O {[%emt 0:00:09]} b6 {[%emt 0:00:04]} 12. Rc1 {[%emt 0:01:44]} Bb7 {[%emt 0:00:24]} 13. Ne2 {[%emt 0:01:20]} Ne6 {[%emt 0:00:16]} 14. f3 {[%emt 0:01:17]} Re8 {[%emt 0:03:11]} 15. Qd2 {[%emt 0:01:01]} Bf8 {[%emt 0:04:28]} 16. Rfd1 {[%emt 0:02:19]} Bc5 {[%emt 0:01:59]} 17. Bb1 {[%emt 0:01:42]} Bxe3+ {[%emt 0:08:14]} 18. Qxe3 {[%emt 0:00:06]} Qe7 {[%emt 0:01:03]} 19. b3 {[%emt 0:01:26]} Bc6 {[%emt 0:01:41]} 20. Rd2 {[%emt 0:01:18]} Qc5 {[%emt 0:10:28]} 21. Kf2 {[%emt 0:00:57]} a5 {[%emt 0:04:33]} 22. a4 {[%emt 0:01:33]} Rf8 {[%emt 0:03:03]} 23. Bc2 {[%emt 0:02:07]} Rae8 {[%emt 0:05:46]} 24. Qxc5 {[%emt 0:06:37]} bxc5 {[%emt 0:08:23]} 25. Re1 {[%emt 0:00:39]} Rb8 {[%emt 0:06:49]} 1/2-1/2

[Event "ISR-ch Open 2018"]
[Site "Ma'alot-Tarshih"]
[Date "2018.12.19"]
[Round "8"]
[White "Lukin, Elisha"]
[Black "Emanuel, Yahav"]
[Result "0-1"]
[ECO "D35"]
[WhiteElo "2280"]
[BlackElo "2221"]
[Annotator "NA"]
[PlyCount "52"]
[EventDate "2018.12.12"]
[EventType "swiss"]
[EventCountry "ISR"]
[SourceTitle "playchess.com"]
[Source "ChessBase"]
[SourceQuality "1"]
[TimeControl "40/5400+30:1800+30"]

{[%evp 12,52,0,32767,32767,32767,32767,22,30,32767,32767,-4,-1,-2,32767,-81,32767,32767,-50,-104,-29,-8,-7,32767,0,32767,32767,32767,32767,32767,32767,-108,-137,-137,-158,-510,32767,32767,32767,32767,32767,-930,-1022]} 1. d4 {[%emt 0:01:14]} Nf6 {[%emt 0:00:00]} 2. c4 {[%emt 0:02:51]} e6 {[%emt 0:00:00]} 3. Nc3 {[%emt 0:00:24]} d5 {[%emt 0:00:00]} 4. cxd5 {[%emt 0:00:12]} exd5 {[%emt 0:00:00]} 5. Bg5 {[%emt 0:00:12]} c6 {[%emt 0:00:07]} 6. e3 {[%emt 0:00:06]} h6 {[%emt 0:00:17]} 7. Bh4 {[%emt 0:00:53]} Be6 {[%emt 0:00:16] D35: Queen's Gambit Declined: Exchange Variation} 8. Bd3 {[%emt 0:00:24]} Nbd7 {[%emt 0:00:19]} 9. Nge2 {[%emt 0:00:23]} g5 {[%emt 0:01:56] LiveBook: 10 Games} 10. Bg3 {[%emt 0:00:19]} Nh5 {[%emt 0:00:03]} 11. h4 $146 {[%emt 0:08:27]} ({Predecessor:} 11. Qc2 Nxg3 12. Nxg3 h5 13. Nf5 h4 14. O-O-O {½-½ (43) Karjakin,S (2783)-Meier,G (2630) chess.com INT 2017}) 11... Nxg3 {[%emt 0:08:32]} 12. Nxg3 {[%emt 0:03:04]} gxh4 {[%emt 0:02:30]} 13. Nh5 {[%emt 0:04:05]} (13. Nf5 $11 {remains equal.}) 13... Rg8 {[%emt 0:20:31]} 14. Nf4 {[%emt 0:05:59]} Qg5 {[%emt 0:02:44]} 15. Qb3 {[%emt 0:08:00] [#]} Bd6 {[%emt 0:19:33]} (15... O-O-O $1 $17) 16. Qxb7 {[%emt 0:18:57]} ({Much weaker is} 16. Nxe6 fxe6 17. Qxb7 {[%mdl 64] Double Attack} Rb8 $17) 16... Rb8 {[%emt 0:00:09]} 17. Qxc6 {[%emt 0:02:54]} Bxf4 {[%emt 0:12:42]} 18. exf4 {[%emt 0:09:33]} Qxg2 {[%emt 0:00:23]} 19. O-O-O {[%emt 0:02:07]} Qxf2 {[%emt 0:02:56]} 20. Rd2 {[%emt 0:01:54]} Qxf4 {[%emt 0:07:42]} 21. Rf1 {[%emt 0:04:14]} ({White should try} 21. Nxd5 $15 Bxd5 22. Qxd5 Rxb2 {[%mdl 64] Pin} 23. Qe4+ Qxe4 24. Bxe4 Rxd2 25. Kxd2) 21... Qg5 {[%emt 0:00:30]} 22. Nb5 {[%emt 0:03:46]} Rb6 {[%emt 0:02:36]} 23. Nd6+ $2 {[%emt 0:04:09]} (23. Qc3 $17 {is a better chance.}) 23... Kd8 {[%emt 0:00:30]} 24. Qa8+ {[%emt 0:03:38]} Kc7 {[%emt 0:01:23]} 25. Ne8+ {[%emt 0:00:44]} Rxe8 {[%emt 0:00:07]} 26. Qxe8 {[%emt 0:00:22]} Rb8 $19 {[%emt 0:00:14]} 0-1